[Event "Titled Tuesday Blitz August 31 2021"]
[White "Postny, Evgeny"]
[Black "Chigaev, Maksim"]
[WhiteFideId "2804344"]
[BlackFideId "4108116"]
[WhiteElo "2521"]
[BlackElo "2579"]
[Result "0-1"]
[Round "05"]
[TimeControl "180+1"]
[Date "2021.08.31"]
[WhiteClock "0:00:05"]
[BlackClock "0:00:12"]

1. d4 {[%clk 0:03:00]}  g6 {[%clk 0:02:59]} 2. c4 {[%clk 0:02:59]}  Bg7 {[%clk 0:02:59]} 3. Nc3 {[%clk 0:03:00]}  d6 {[%clk 0:02:59]} 4. e4 {[%clk 0:03:00]}  Nc6 {[%clk 0:02:59]} 5. Be3 {[%clk 0:02:58]}  e5 {[%clk 0:02:56]} 6. Nge2 {[%clk 0:02:54]}  exd4 {[%clk 0:02:53]} 7. Nxd4 {[%clk 0:02:54]}  Nge7 {[%clk 0:02:54]} 8. h4 {[%clk 0:02:50]}  h5 {[%clk 0:02:42]} 9. Be2 {[%clk 0:02:45]}  f5 {[%clk 0:02:31]} 10. Nxc6 {[%clk 0:02:33]}  bxc6 {[%clk 0:02:26]} 11. Bd4 {[%clk 0:02:30]}  O-O {[%clk 0:02:24]} 12. Bxg7 {[%clk 0:02:28]}  Kxg7 {[%clk 0:02:25]} 13. Qd4+ {[%clk 0:02:17]}  Kh7 {[%clk 0:02:24]} 14. O-O-O {[%clk 0:02:17]}  c5 {[%clk 0:02:22]} 15. Qd2 {[%clk 0:02:16]}  Nc6 {[%clk 0:02:17]} 16. exf5 {[%clk 0:01:53]}  Bxf5 {[%clk 0:02:18]} 17. g4 {[%clk 0:01:41]}  hxg4 {[%clk 0:02:16]} 18. h5 {[%clk 0:01:37]}  g5 {[%clk 0:02:15]} 19. Bd3 {[%clk 0:01:28]}  Bxd3 {[%clk 0:02:09]} 20. Qxd3+ {[%clk 0:01:28]}  Kh8 {[%clk 0:02:09]} 21. Qg6 {[%clk 0:01:09]}  Ne5 {[%clk 0:01:14]} 22. Qh6+ {[%clk 0:01:08]}  Kg8 {[%clk 0:01:15]} 23. Ne4 {[%clk 0:01:02]}  Rf5 {[%clk 0:01:10]} 24. Qe6+ {[%clk 0:00:56]}  Rf7 {[%clk 0:01:08]} 25. h6 {[%clk 0:00:44]}  Qe7 {[%clk 0:01:04]} 26. h7+ {[%clk 0:00:38]}  Kh8 {[%clk 0:01:02]} 27. Qxe7 {[%clk 0:00:23]}  Rxe7 {[%clk 0:01:03]} 28. Nxg5 {[%clk 0:00:23]}  Rf8 {[%clk 0:00:57]} 29. Rh2 {[%clk 0:00:10]}  Rf5 {[%clk 0:00:54]} 30. Ne4 {[%clk 0:00:08]}  Nxc4 {[%clk 0:00:50]} 31. Ng3 {[%clk 0:00:08]}  Rff7 {[%clk 0:00:49]} 32. Rh4 {[%clk 0:00:07]}  Ne5 {[%clk 0:00:49]} 33. Rdh1 {[%clk 0:00:05]}  Rxf2 {[%clk 0:00:40]} 34. Rh6 {[%clk 0:00:04]}  Rff7 {[%clk 0:00:37]} 35. Ne4 {[%clk 0:00:02]}  Nd3+ {[%clk 0:00:30]} 36. Kd2 {[%clk 0:00:02]}  Rxe4 {[%clk 0:00:25]} 37. Kxd3 {[%clk 0:00:03]}  Ree7 {[%clk 0:00:24]} 38. Rg1 {[%clk 0:00:03]}  Rxh7 {[%clk 0:00:23]} 39. Rxh7+ {[%clk 0:00:04]}  Kxh7 {[%clk 0:00:22]} 40. Rxg4 {[%clk 0:00:05]}  Rg7 {[%clk 0:00:22]} 41. Ra4 {[%clk 0:00:04]}  c6 {[%clk 0:00:20]} 42. Ra6 {[%clk 0:00:04]}  Rc7 {[%clk 0:00:20]} 43. Kc4 {[%clk 0:00:04]}  Kg6 {[%clk 0:00:20]} 44. a3 {[%clk 0:00:05]}  Kf5 {[%clk 0:00:20]} 45. b4 {[%clk 0:00:05]}  cxb4 {[%clk 0:00:21]} 46. axb4 {[%clk 0:00:06]}  Ke5 {[%clk 0:00:20]} 47. b5 {[%clk 0:00:07]}  c5 {[%clk 0:00:19]} 48. Rc6 {[%clk 0:00:06]}  Rb7 {[%clk 0:00:13]} 49. Rc8 {[%clk 0:00:06]}  Re7 {[%clk 0:00:13]} 50. Rd8 {[%clk 0:00:05]}  Ke6 {[%clk 0:00:12]} 51. Rh8 {[%clk 0:00:05]}  Rf7 {[%clk 0:00:12]} 52. Rh7 {[%clk 0:00:05]}  Rxh7 {[%clk 0:00:12]} 0-1


[Site "https://www.chess.com"]

[Event "Titled Tuesday Blitz August 31 2021"]
[White "Quispe Arteaga, Gabriel"]
[Black "Al-Tarboush, Ward"]
[WhiteFideId "32059809"]
[BlackFideId "7601450"]
[WhiteElo "2172"]
[BlackElo "2319"]
[Result "1-0"]
[Round "05"]
[TimeControl "180+1"]
[Date "2021.08.31"]
[WhiteClock "0:01:11"]
[BlackClock "0:00:01"]

1. c4 {[%clk 0:03:00]}  c5 {[%clk 0:02:56]} 2. Nf3 {[%clk 0:03:00]}  Nc6 {[%clk 0:02:56]} 3. d4 {[%clk 0:03:01]}  cxd4 {[%clk 0:02:55]} 4. Nxd4 {[%clk 0:03:02]}  Nf6 {[%clk 0:02:55]} 5. Nc3 {[%clk 0:02:58]}  e6 {[%clk 0:02:55]} 6. g3 {[%clk 0:02:58]}  Qb6 {[%clk 0:02:53]} 7. Ndb5 {[%clk 0:02:55]}  Bc5 {[%clk 0:02:51]} 8. e3 {[%clk 0:02:49]}  O-O {[%clk 0:02:51]} 9. a3 {[%clk 0:02:39]}  a6 {[%clk 0:02:40]} 10. Na4 {[%clk 0:02:35]}  Qa5+ {[%clk 0:01:46]} 11. Bd2 {[%clk 0:02:33]}  axb5 {[%clk 0:01:44]} 12. Bxa5 {[%clk 0:02:29]}  bxa4 {[%clk 0:01:11]} 13. Bc3 {[%clk 0:02:28]}  Ne4 {[%clk 0:01:09]} 14. Bd3 {[%clk 0:02:27]}  Nxc3 {[%clk 0:01:08]} 15. bxc3 {[%clk 0:02:28]}  b6 {[%clk 0:01:04]} 16. O-O {[%clk 0:02:28]}  Ne5 {[%clk 0:01:03]} 17. Bxh7+ {[%clk 0:02:25]}  Kxh7 {[%clk 0:01:01]} 18. Qh5+ {[%clk 0:02:25]}  Kg8 {[%clk 0:01:01]} 19. Qxe5 {[%clk 0:02:25]}  Bb7 {[%clk 0:00:59]} 20. Rfd1 {[%clk 0:02:24]}  Bc6 {[%clk 0:00:58]} 21. Qf4 {[%clk 0:02:12]}  f6 {[%clk 0:00:55]} 22. h4 {[%clk 0:02:10]}  Rab8 {[%clk 0:00:42]} 23. h5 {[%clk 0:02:06]}  e5 {[%clk 0:00:29]} 24. Qf5 {[%clk 0:02:02]}  Rfd8 {[%clk 0:00:21]} 25. h6 {[%clk 0:01:57]}  Kf7 {[%clk 0:00:21]} 26. hxg7 {[%clk 0:01:51]}  Kxg7 {[%clk 0:00:21]} 27. Rd5 {[%clk 0:01:50]}  Bxd5 {[%clk 0:00:20]} 28. cxd5 {[%clk 0:01:50]}  d6 {[%clk 0:00:19]} 29. Qg4+ {[%clk 0:01:48]}  Kf7 {[%clk 0:00:19]} 30. Qxa4 {[%clk 0:01:47]}  Rh8 {[%clk 0:00:15]} 31. Qg4 {[%clk 0:01:46]}  Rh6 {[%clk 0:00:09]} 32. Qd7+ {[%clk 0:01:44]}  Kg6 {[%clk 0:00:08]} 33. Kg2 {[%clk 0:01:41]}  Rbh8 {[%clk 0:00:08]} 34. Qg4+ {[%clk 0:01:39]}  Kf7 {[%clk 0:00:08]} 35. Qe6+ {[%clk 0:01:39]}  Kg6 {[%clk 0:00:08]} 36. Kf3 {[%clk 0:01:38]}  Rh5 {[%clk 0:00:06]} 37. Ke2 {[%clk 0:01:36]}  Rf5 {[%clk 0:00:04]} 38. Rh1 {[%clk 0:01:27]}  Rxh1 {[%clk 0:00:03]} 39. Qg8+ {[%clk 0:01:27]}  Kh6 {[%clk 0:00:04]} 40. Qh8+ {[%clk 0:01:27]}  Kg6 {[%clk 0:00:05]} 41. Qxh1 {[%clk 0:01:27]}  Rh5 {[%clk 0:00:05]} 42. Qe4+ {[%clk 0:01:27]}  f5 {[%clk 0:00:06]} 43. Qc4 {[%clk 0:01:27]}  e4 {[%clk 0:00:06]} 44. g4 {[%clk 0:01:26]}  Rh2 {[%clk 0:00:06]} 45. gxf5+ {[%clk 0:01:19]}  Kxf5 {[%clk 0:00:07]} 46. Qb5 {[%clk 0:01:19]}  Ke5 {[%clk 0:00:06]} 47. c4 {[%clk 0:01:13]}  Rh4 {[%clk 0:00:03]} 48. Qd7 {[%clk 0:01:12]}  Kf6 {[%clk 0:00:01]} 49. Qd8+ {[%clk 0:01:11]} 1-0


[Site "https://www.chess.com"]

[Event "Titled Tuesday Blitz August 31 2021"]
[White "Terry, Renato"]
[Black "Quintiliano Pinto, Renato R."]
[WhiteFideId "3803457"]
[BlackFideId "2117568"]
[WhiteElo "2581"]
[BlackElo "2439"]
[Result "0-1"]
[Round "05"]
[TimeControl "180+1"]
[Date "2021.08.31"]
[WhiteClock "0:00:21"]
[BlackClock "0:00:34"]

1. Nf3 {[%clk 0:03:00]}  Nf6 {[%clk 0:02:59]} 2. b4 {[%clk 0:02:59]}  e6 {[%clk 0:02:57]} 3. b5 {[%clk 0:02:58]}  a6 {[%clk 0:02:56]} 4. c4 {[%clk 0:02:53]}  d5 {[%clk 0:02:54]} 5. e3 {[%clk 0:02:53]}  axb5 {[%clk 0:02:41]} 6. cxb5 {[%clk 0:02:54]}  c5 {[%clk 0:02:41]} 7. Bb2 {[%clk 0:02:53]}  Bd6 {[%clk 0:02:39]} 8. g4 {[%clk 0:02:40]}  O-O {[%clk 0:02:36]} 9. g5 {[%clk 0:02:33]}  Ne4 {[%clk 0:02:29]} 10. h4 {[%clk 0:02:08]}  Nd7 {[%clk 0:02:10]} 11. a4 {[%clk 0:02:07]}  c4 {[%clk 0:01:36]} 12. Nc3 {[%clk 0:01:53]}  Ndc5 {[%clk 0:01:33]} 13. Nxe4 {[%clk 0:01:51]}  dxe4 {[%clk 0:01:17]} 14. Ne5 {[%clk 0:01:50]}  Bxe5 {[%clk 0:01:09]} 15. Bxe5 {[%clk 0:01:50]}  Qd5 {[%clk 0:01:08]} 16. Bc3 {[%clk 0:01:47]}  e5 {[%clk 0:01:02]} 17. h5 {[%clk 0:01:25]}  f5 {[%clk 0:01:00]} 18. Bb4 {[%clk 0:00:50]}  Nd3+ {[%clk 0:00:45]} 19. Bxd3 {[%clk 0:00:49]}  exd3 {[%clk 0:00:46]} 20. Rg1 {[%clk 0:00:48]}  Re8 {[%clk 0:00:45]} 21. Rg3 {[%clk 0:00:21]}  Qh1+ {[%clk 0:00:34]} 0-1


[Site "https://www.chess.com"]

[Event "Titled Tuesday Blitz August 31 2021"]
[White "Urazayev, Arystanbek"]
[Black "Schmakel, Sam"]
[WhiteFideId "13709810"]
[BlackFideId "2039311"]
[WhiteElo "2321"]
[BlackElo "2356"]
[Result "0-1"]
[Round "05"]
[TimeControl "180+1"]
[Date "2021.08.31"]
[WhiteClock "0:00:28"]
[BlackClock "0:00:04"]

1. d4 {[%clk 0:03:00]}  Nf6 {[%clk 0:02:59]} 2. c4 {[%clk 0:03:01]}  g6 {[%clk 0:02:59]} 3. Nc3 {[%clk 0:03:02]}  Bg7 {[%clk 0:02:59]} 4. e4 {[%clk 0:03:02]}  d6 {[%clk 0:03:00]} 5. Be2 {[%clk 0:03:03]}  O-O {[%clk 0:03:00]} 6. h4 {[%clk 0:03:03]}  c5 {[%clk 0:02:58]} 7. d5 {[%clk 0:03:04]}  e6 {[%clk 0:02:53]} 8. h5 {[%clk 0:03:03]}  exd5 {[%clk 0:02:53]} 9. exd5 {[%clk 0:03:04]}  Re8 {[%clk 0:02:49]} 10. h6 {[%clk 0:03:05]}  Bh8 {[%clk 0:02:48]} 11. Bg5 {[%clk 0:03:05]}  b5 {[%clk 0:02:29]} 12. cxb5 {[%clk 0:02:59]}  a6 {[%clk 0:02:27]} 13. a4 {[%clk 0:02:39]}  Qa5 {[%clk 0:01:54]} 14. Bd2 {[%clk 0:02:38]}  axb5 {[%clk 0:01:54]} 15. Nxb5 {[%clk 0:02:31]}  Qb6 {[%clk 0:01:54]} 16. Bc3 {[%clk 0:02:21]}  Ba6 {[%clk 0:01:26]} 17. Kf1 {[%clk 0:02:19]}  Nbd7 {[%clk 0:01:22]} 18. Rc1 {[%clk 0:01:55]}  Ne4 {[%clk 0:00:54]} 19. Bxh8 {[%clk 0:01:54]}  Kxh8 {[%clk 0:00:55]} 20. Nf3 {[%clk 0:01:46]}  Kg8 {[%clk 0:00:43]} 21. Rh4 {[%clk 0:01:45]}  Ndf6 {[%clk 0:00:32]} 22. Kg1 {[%clk 0:01:39]}  Bb7 {[%clk 0:00:25]} 23. Bc4 {[%clk 0:01:37]}  g5 {[%clk 0:00:16]} 24. Rh1 {[%clk 0:01:14]}  g4 {[%clk 0:00:16]} 25. Nd2 {[%clk 0:01:06]}  Nxd2 {[%clk 0:00:05]} 26. Qxd2 {[%clk 0:01:07]}  Re5 {[%clk 0:00:06]} 27. Nc3 {[%clk 0:01:04]}  Rae8 {[%clk 0:00:05]} 28. b3 {[%clk 0:01:02]}  Kh8 {[%clk 0:00:04]} 29. Rh4 {[%clk 0:00:57]}  Qd8 {[%clk 0:00:04]} 30. g3 {[%clk 0:00:56]}  Ne4 {[%clk 0:00:03]} 31. Nxe4 {[%clk 0:00:55]}  Rxe4 {[%clk 0:00:04]} 32. Rh5 {[%clk 0:00:47]}  Qf6 {[%clk 0:00:04]} 33. Qg5 {[%clk 0:00:44]}  Re1+ {[%clk 0:00:03]} 34. Rxe1 {[%clk 0:00:44]}  Rxe1+ {[%clk 0:00:04]} 35. Kg2 {[%clk 0:00:42]}  Qf3+ {[%clk 0:00:04]} 36. Kh2 {[%clk 0:00:28]}  Qxf2# {[%clk 0:00:04]} 0-1


[Site "https://www.chess.com"]

[Event "Titled Tuesday Blitz August 31 2021"]
[White "Vlassov, Nikolai"]
[Black "Tristan, Leonardo"]
[WhiteFideId "4103360"]
[BlackFideId "113816"]
[WhiteElo "2407"]
[BlackElo "2404"]
[Result "1-0"]
[Round "05"]
[TimeControl "180+1"]
[Date "2021.08.31"]
[WhiteClock "0:00:03"]
[BlackClock "0:00:07"]

1. e4 {[%clk 0:03:00]}  d5 {[%clk 0:03:00]} 2. exd5 {[%clk 0:03:00]}  Qxd5 {[%clk 0:03:01]} 3. Nc3 {[%clk 0:03:01]}  Qa5 {[%clk 0:03:01]} 4. Nf3 {[%clk 0:03:01]}  Nf6 {[%clk 0:03:01]} 5. d4 {[%clk 0:03:01]}  Bf5 {[%clk 0:03:01]} 6. Ne5 {[%clk 0:02:57]}  c6 {[%clk 0:03:01]} 7. Bf4 {[%clk 0:02:54]}  Nbd7 {[%clk 0:02:46]} 8. Nc4 {[%clk 0:02:53]}  Qd8 {[%clk 0:02:46]} 9. Be2 {[%clk 0:02:48]}  Nb6 {[%clk 0:02:45]} 10. Ne3 {[%clk 0:02:47]}  Be6 {[%clk 0:02:44]} 11. O-O {[%clk 0:02:34]}  g6 {[%clk 0:02:44]} 12. Be5 {[%clk 0:02:28]}  Bg7 {[%clk 0:02:44]} 13. f4 {[%clk 0:02:28]}  O-O {[%clk 0:02:38]} 14. f5 {[%clk 0:02:28]}  Bc8 {[%clk 0:02:29]} 15. g4 {[%clk 0:02:21]}  Nfd5 {[%clk 0:02:04]} 16. Nexd5 {[%clk 0:02:08]}  Nxd5 {[%clk 0:02:04]} 17. Bxg7 {[%clk 0:02:06]}  Kxg7 {[%clk 0:01:46]} 18. Nxd5 {[%clk 0:02:05]}  Qxd5 {[%clk 0:01:46]} 19. Bf3 {[%clk 0:02:06]}  Qd6 {[%clk 0:01:47]} 20. Be4 {[%clk 0:01:57]}  Bd7 {[%clk 0:01:42]} 21. Qd2 {[%clk 0:01:51]}  Rad8 {[%clk 0:01:36]} 22. Rf3 {[%clk 0:01:50]}  gxf5 {[%clk 0:00:33]} 23. gxf5 {[%clk 0:01:49]}  Kh8 {[%clk 0:00:33]} 24. Kh1 {[%clk 0:01:48]}  Qf6 {[%clk 0:00:31]} 25. c3 {[%clk 0:01:36]}  Rg8 {[%clk 0:00:31]} 26. Qf4 {[%clk 0:01:28]}  c5 {[%clk 0:00:20]} 27. Rh3 {[%clk 0:01:08]}  Bc6 {[%clk 0:00:16]} 28. dxc5 {[%clk 0:00:56]}  Rg5 {[%clk 0:00:16]} 29. Bxc6 {[%clk 0:00:39]}  Qxc6+ {[%clk 0:00:17]} 30. Qf3 {[%clk 0:00:40]}  Rxf5 {[%clk 0:00:15]} 31. Qxc6 {[%clk 0:00:39]}  bxc6 {[%clk 0:00:16]} 32. b4 {[%clk 0:00:39]}  Rd2 {[%clk 0:00:16]} 33. a4 {[%clk 0:00:32]}  a6 {[%clk 0:00:16]} 34. Rg3 {[%clk 0:00:11]}  h5 {[%clk 0:00:16]} 35. Rag1 {[%clk 0:00:10]}  Rff2 {[%clk 0:00:15]} 36. R3g2 {[%clk 0:00:08]}  Kh7 {[%clk 0:00:10]} 37. Rg7+ {[%clk 0:00:07]}  Kh6 {[%clk 0:00:10]} 38. R7g2 {[%clk 0:00:07]}  h4 {[%clk 0:00:09]} 39. Rxf2 {[%clk 0:00:07]}  Rxf2 {[%clk 0:00:09]} 40. Re1 {[%clk 0:00:06]}  e6 {[%clk 0:00:09]} 41. Rd1 {[%clk 0:00:02]}  Rc2 {[%clk 0:00:09]} 42. Rd3 {[%clk 0:00:02]}  f5 {[%clk 0:00:08]} 43. b5 {[%clk 0:00:01]}  axb5 {[%clk 0:00:08]} 44. axb5 {[%clk 0:00:02]}  cxb5 {[%clk 0:00:07]} 45. c6 {[%clk 0:00:03]}  b4 {[%clk 0:00:08]} 46. c7 {[%clk 0:00:03]}  b3 {[%clk 0:00:05]} 47. c8=Q {[%clk 0:00:03]}  b2 {[%clk 0:00:06]} 48. Qh8+ {[%clk 0:00:03]}  Kg5 {[%clk 0:00:06]} 49. Qg7+ {[%clk 0:00:03]}  Kf4 {[%clk 0:00:07]} 50. Qh6+ {[%clk 0:00:03]}  Ke4 {[%clk 0:00:07]} 51. Qe3# {[%clk 0:00:03]} 1-0


[Site "https://www.chess.com"]

[Event "Titled Tuesday Blitz August 31 2021"]
[White "Wong, Yinn Long"]
[Black "Suarez Uriel, Adrian"]
[WhiteFideId "5707684"]
[BlackFideId "22230874"]
[WhiteElo "2016"]
[BlackElo "2300"]
[Result "1-0"]
[Round "05"]
[TimeControl "180+1"]
[Date "2021.08.31"]
[WhiteClock "0:00:12"]
[BlackClock "0:00:47"]

1. e4 {[%clk 0:03:00]}  c5 {[%clk 0:02:59]} 2. Nc3 {[%clk 0:03:00]}  Nc6 {[%clk 0:02:58]} 3. g3 {[%clk 0:03:01]}  g6 {[%clk 0:02:57]} 4. Bg2 {[%clk 0:03:01]}  Bg7 {[%clk 0:02:58]} 5. d3 {[%clk 0:03:02]}  Rb8 {[%clk 0:02:58]} 6. Be3 {[%clk 0:03:01]}  b5 {[%clk 0:02:59]} 7. Bxc5 {[%clk 0:02:35]}  b4 {[%clk 0:02:58]} 8. Na4 {[%clk 0:02:25]}  Qa5 {[%clk 0:02:49]} 9. b3 {[%clk 0:02:25]}  Bxa1 {[%clk 0:02:45]} 10. Qxa1 {[%clk 0:02:26]}  f6 {[%clk 0:02:39]} 11. Nf3 {[%clk 0:02:14]}  Nh6 {[%clk 0:02:36]} 12. e5 {[%clk 0:02:10]}  O-O {[%clk 0:02:15]} 13. O-O {[%clk 0:02:05]}  Qc7 {[%clk 0:01:56]} 14. exf6 {[%clk 0:02:00]}  Rxf6 {[%clk 0:01:54]} 15. Bxe7 {[%clk 0:01:59]}  Rxf3 {[%clk 0:01:50]} 16. Bg5 {[%clk 0:01:34]}  Nf7 {[%clk 0:01:48]} 17. Bxf3 {[%clk 0:01:17]}  Nxg5 {[%clk 0:01:48]} 18. Bd5+ {[%clk 0:01:18]}  Ne6 {[%clk 0:01:48]} 19. Nc5 {[%clk 0:01:12]}  Qe5 {[%clk 0:01:46]} 20. Nxe6 {[%clk 0:01:07]}  dxe6 {[%clk 0:01:23]} 21. Bxc6 {[%clk 0:01:04]}  Qxa1 {[%clk 0:01:23]} 22. Rxa1 {[%clk 0:01:05]}  Ba6 {[%clk 0:01:17]} 23. Re1 {[%clk 0:01:00]}  Kf7 {[%clk 0:01:17]} 24. Bd7 {[%clk 0:00:57]}  Rb6 {[%clk 0:01:15]} 25. f4 {[%clk 0:00:51]}  Ke7 {[%clk 0:01:14]} 26. Ba4 {[%clk 0:00:51]}  Bb7 {[%clk 0:01:13]} 27. Kf2 {[%clk 0:00:50]}  Bd5 {[%clk 0:01:11]} 28. g4 {[%clk 0:00:45]}  Rb8 {[%clk 0:01:08]} 29. Kg3 {[%clk 0:00:43]}  h6 {[%clk 0:01:05]} 30. Re2 {[%clk 0:00:43]}  a5 {[%clk 0:01:03]} 31. h4 {[%clk 0:00:43]}  Rf8 {[%clk 0:00:57]} 32. Bb5 {[%clk 0:00:41]}  Kd6 {[%clk 0:00:56]} 33. Bc4 {[%clk 0:00:40]}  Rc8 {[%clk 0:00:55]} 34. Rf2 {[%clk 0:00:29]}  Bxc4 {[%clk 0:00:54]} 35. dxc4 {[%clk 0:00:30]}  Ke7 {[%clk 0:00:53]} 36. Rd2 {[%clk 0:00:30]}  Rf8 {[%clk 0:00:49]} 37. Rd3 {[%clk 0:00:23]}  Rc8 {[%clk 0:00:48]} 38. c3 {[%clk 0:00:22]}  Rf8 {[%clk 0:00:48]} 39. Re3 {[%clk 0:00:16]}  Kf6 {[%clk 0:00:46]} 40. cxb4 {[%clk 0:00:14]}  axb4 {[%clk 0:00:46]} 41. Kf3 {[%clk 0:00:12]}  Ra8 {[%clk 0:00:46]} 42. Re2 {[%clk 0:00:12]}  Ra5 {[%clk 0:00:46]} 43. Rc2 {[%clk 0:00:11]}  Rc5 {[%clk 0:00:46]} 44. Ke4 {[%clk 0:00:12]}  e5 {[%clk 0:00:45]} 45. fxe5+ {[%clk 0:00:11]}  Rxe5+ {[%clk 0:00:46]} 46. Kd4 {[%clk 0:00:11]}  Ra5 {[%clk 0:00:46]} 47. c5 {[%clk 0:00:12]}  Ra7 {[%clk 0:00:46]} 48. c6 {[%clk 0:00:12]}  Rc7 {[%clk 0:00:47]} 49. Kd5 {[%clk 0:00:12]} 1-0


[Site "https://www.chess.com"]

[Event "Titled Tuesday Blitz August 31 2021"]
[White "Zhigalko, Sergei"]
[Black "Fier, Alexandr"]
[WhiteFideId "13502956"]
[BlackFideId "2107139"]
[WhiteElo "2662"]
[BlackElo "2569"]
[Result "1-0"]
[Round "05"]
[TimeControl "180+1"]
[Date "2021.08.31"]
[WhiteClock "0:00:13"]
[BlackClock "0:00:58"]

1. e4 {[%clk 0:03:00]}  c5 {[%clk 0:02:59]} 2. Nf3 {[%clk 0:03:01]}  d6 {[%clk 0:02:59]} 3. d4 {[%clk 0:03:00]}  cxd4 {[%clk 0:02:59]} 4. Qxd4 {[%clk 0:03:01]}  Nf6 {[%clk 0:02:57]} 5. Nc3 {[%clk 0:03:00]}  Nc6 {[%clk 0:02:56]} 6. Bb5 {[%clk 0:03:00]}  Bd7 {[%clk 0:02:56]} 7. Bxc6 {[%clk 0:03:01]}  Bxc6 {[%clk 0:02:57]} 8. Bg5 {[%clk 0:03:01]}  e6 {[%clk 0:02:56]} 9. O-O-O {[%clk 0:03:01]}  Be7 {[%clk 0:02:57]} 10. Rhe1 {[%clk 0:03:01]}  Qa5 {[%clk 0:02:54]} 11. Kb1 {[%clk 0:03:01]}  h6 {[%clk 0:02:53]} 12. Bh4 {[%clk 0:03:00]}  Qh5 {[%clk 0:02:46]} 13. h3 {[%clk 0:02:50]}  Qc5 {[%clk 0:02:30]} 14. Qd3 {[%clk 0:02:42]}  O-O-O {[%clk 0:02:16]} 15. Nd4 {[%clk 0:02:40]}  Rhe8 {[%clk 0:02:11]} 16. f3 {[%clk 0:02:32]}  Kb8 {[%clk 0:01:49]} 17. Bf2 {[%clk 0:02:31]}  e5 {[%clk 0:01:50]} 18. Nxc6+ {[%clk 0:02:15]}  Qxc6 {[%clk 0:01:51]} 19. Re2 {[%clk 0:02:05]}  Rc8 {[%clk 0:01:50]} 20. Nb5 {[%clk 0:02:03]}  b6 {[%clk 0:01:39]} 21. Red2 {[%clk 0:01:52]}  Red8 {[%clk 0:01:39]} 22. Qb3 {[%clk 0:01:51]}  Qc4 {[%clk 0:01:29]} 23. Qxc4 {[%clk 0:01:43]}  Rxc4 {[%clk 0:01:29]} 24. Nxd6 {[%clk 0:01:43]}  Bxd6 {[%clk 0:01:30]} 25. Rxd6 {[%clk 0:01:44]}  Rxd6 {[%clk 0:01:30]} 26. Rxd6 {[%clk 0:01:45]}  Kc7 {[%clk 0:01:28]} 27. Rd2 {[%clk 0:01:42]}  Rc6 {[%clk 0:01:29]} 28. a4 {[%clk 0:01:39]}  Nd7 {[%clk 0:01:27]} 29. Be3 {[%clk 0:01:37]}  h5 {[%clk 0:01:25]} 30. b3 {[%clk 0:01:34]}  g6 {[%clk 0:01:26]} 31. Rd5 {[%clk 0:01:24]}  f5 {[%clk 0:01:25]} 32. Bg5 {[%clk 0:01:19]}  Re6 {[%clk 0:01:24]} 33. b4 {[%clk 0:01:10]}  Kc6 {[%clk 0:01:10]} 34. Bd8 {[%clk 0:00:26]}  Nf8 {[%clk 0:01:09]} 35. Kb2 {[%clk 0:00:22]}  Kb7 {[%clk 0:01:04]} 36. Kb3 {[%clk 0:00:20]}  Kc8 {[%clk 0:01:05]} 37. Bg5 {[%clk 0:00:18]}  Nh7 {[%clk 0:01:05]} 38. Bh4 {[%clk 0:00:16]}  fxe4 {[%clk 0:01:04]} 39. fxe4 {[%clk 0:00:16]}  g5 {[%clk 0:01:05]} 40. Bg3 {[%clk 0:00:17]}  Nf6 {[%clk 0:01:03]} 41. Rxe5 {[%clk 0:00:17]}  Rxe5 {[%clk 0:01:03]} 42. Bxe5 {[%clk 0:00:18]}  Nxe4 {[%clk 0:01:04]} 43. Kc4 {[%clk 0:00:18]}  Nd2+ {[%clk 0:01:01]} 44. Kd3 {[%clk 0:00:14]}  Nb1 {[%clk 0:00:58]} 45. Bb2 {[%clk 0:00:13]} 1-0


[Site "https://www.chess.com"]